{"text_format":"3","workbook":"xlsx","n_sheets":2,"sheets":["Sheet1 (2)","Sheet3"],"not_rendered":{"images":4},"read":"whole","date_system":"1900"}

{"sheet":"Sheet1 (2)","index":0,"n_rows":397,"n_cols":13,"rows_kept":397,"merged":[[0,12,2,12],[90,0,90,12],[401,12,406,12],[407,12,413,12],[414,12,419,12],[420,12,425,12],[426,12,430,12],[431,12,436,12],[437,12,441,12],[442,12,448,12],[449,12,454,12],[455,12,460,12],[461,12,466,12],[467,12,472,12],[473,12,477,12],[478,12,484,12],[485,12,491,12]]}
["   ","                                       ",null,"三院区年用量汇总表"]
[]
[{"$nulls":3},"调料"]
["序号","品名","参考品牌","产品质量要求","规格","单位","西溪\n年用量","湖滨\n年用量","钱塘\n年用量","合计","单价","合计金额","备注"]
[{"$f":"ROW(A1)","v":1},"糯米料酒","湖羊或同档次以上","产品保质期不得少于出厂保质期的三分之二","350g*40包/箱","箱",100,400,300,{"$f":"G5+H5+I5","v":800},null,null,"固定单价"]
[{"$f":"ROW(A2)","v":2},"味精 ","西湖或同档次以上","产品保质期不得少于出厂保质期的三分之二","2.5kg*4包/袋","袋",65,230,200,{"$f":"G6+H6+I6","v":495},null,null,"固定单价"]
[{"$f":"ROW(A3)","v":3},"麻油","港盛或同档次以上","产品保质期不得少于出厂保质期的三分之二","190ml/12瓶/箱","箱",60,150,200,410,null,null,"固定单价"]
[4,"广西白糖","甜源或同档次以上","产品保质期不得少于出厂保质期的三分之二","50㎏/袋","袋",25,100,60,185,null,null,"固定单价"]
[5,"蚝油","海天或同档次以上","产品保质期不得少于出厂保质期的三分之二","520ml*12瓶/箱","箱",60,300,150,510,null,null,"固定单价"]
[6,"辣油","港盛或同档次以上","产品保质期不得少于出厂保质期的三分之二","190ml*12瓶/箱","箱",30,50,100,180,null,null,"固定单价"]
[7,"生抽 ","海天或同档次以上","产品保质期不得少于出厂保质期的三分之二","1.9L*6瓶/箱","箱",150,330,420,900,null,null,"固定单价"]
[8,"老抽王","海天或同档次以上","产品保质期不得少于出厂保质期的三分之二","1.9L*6瓶/箱","箱",70,150,200,420,null,null,"固定单价"]
[9,"酱油","湖羊或同档次以上","产品保质期不得少于出厂保质期的三分之二","400ml/包*30包/箱","箱",15,50,50,115,null,null,"固定单价"]
[10,"黑芝麻馅料","早田或同档次以上","产品保质期不得少于出厂保质期的三分之二","5㎏/包","包",10,20,32,62,null,null,"固定单价"]
[11,"白钻内酯粉","百钻或同档次以上","产品保质期不得少于出厂保质期的三分之二","1㎏/包","包",30,20,100,150,null,null,"固定单价"]
[12,"生粉","进口风车或同档次以上","产品保质期不得少于出厂保质期的三分之二","20㎏/包","包",45,90,160,295,null,null,"固定单价"]
[13,"金酸汤调味酱","家乐或同档次以上","产品保质期不得少于出厂保质期的三分之二","960g*6包/箱","箱",5,20,20,45,null,null,"固定单价"]
[14,"细盐","雪涛或同档次以上","产品保质期不得少于出厂保质期的三分之二","500g*40包/箱","箱",100,300,300,700,null,null,"固定单价"]
[15,"美味鲜酱油","厨邦或同档次以上","产品保质期不得少于出厂保质期的三分之二","1.68L*6桶/箱","箱",50,50,120,220,null,null,"固定单价"]
[16,"沙司","妙发、梅林或同档次以上","产品保质期不得少于出厂保质期的三分之二","397g*24瓶/箱","箱",15,50,50,115,null,null,"固定单价"]
[17,"南乳汁","咸亨及同档次以上","产品保质期不得少于出厂保质期的三分之二","500g*12瓶/箱","箱",10,30,50,90,null,null,"固定单价"]
[18,"火锅底料","三五及同档次以上","产品保质期不得少于出厂保质期的三分之二","150g60包/箱","箱",10,30,20,60,null,null,"固定单价"]
[19,"米醋","双鱼及同档次以上","产品保质期不得少于出厂保质期的三分之二","250ml*60包/箱","箱",50,60,120,230,null,null,"固定单价"]
[20,"白醋","奉化或同档次以上","产品保质期不得少于出厂保质期的三分之二","500ml*20瓶/箱","箱",20,10,50,80,null,null,"固定单价"]
[21,"烹饪白酒","四特或同档次以上","产品保质期不得少于出厂保质期的三分之二","500ml*12瓶/箱","箱",12,15,20,47,null,null,"固定单价"]
[22,"白胡椒粉","国良或同档次以上","产品保质期不得少于出厂保质期的三分之二","200g*40包/箱","箱",15,30,20,65,null,null,"固定单价"]
[23,"红油豆瓣","丹丹或同档次以上","产品保质期不得少于出厂保质期的三分之二","10㎏/箱/箱","箱",20,30,45,95,null,null,"固定单价"]
[24,"蒸肉粉","国良或同档次以上","产品保质期不得少于出厂保质期的三分之二","45包*120g/箱","箱",20,50,50,120,null,null,"固定单价"]
[25,"浓缩鸡汁","家乐或同档次以上","产品保质期不得少于出厂保质期的三分之二","1㎏*6瓶/箱","箱",8,10,16,34,null,null,"固定单价"]
[26,"鸡精","西湖或同档次以上","产品保质期不得少于出厂保质期的三分之二","1kg*10包/箱","箱",70,50,180,300,null,null,"固定单价"]
[27,"黄豆酱","湖羊或同档次以上","产品保质期不得少于出厂保质期的三分之二","225g*30盒/箱","箱",5,10,15,30,null,null,"固定单价"]
[28,"风味豆豉油制辣椒","老干妈或同档次以上","产品保质期不得少于出厂保质期的三分之二","280g*24瓶/箱/箱","箱",5,20,15,40,null,null,"固定单价"]
[29,"海鲜酱","李锦记或同档次以上","产品保质期不得少于出厂保质期的三分之二","240g*12瓶/箱","箱",12,20,18,50,null,null,"固定单价"]
[30,"香辣酱","李锦记或同档次以上","产品保质期不得少于出厂保质期的三分之二","205g*12瓶/箱","箱",20,60,18,98,null,null,"固定单价"]
[31,"蒜蓉酱","海天或同档次以上","产品保质期不得少于出厂保质期的三分之二","230ml*15瓶/箱","箱",8,10,10,28,null,null,"固定单价"]
[32,"蒸鱼豉油","海天或同档次以上","产品保质期不得少于出厂保质期的三分之二","1.75L*6桶/箱","箱",8,20,10,38,null,null,"固定单价"]
[33,"藤椒油","幺麻子或同档次以上","产品保质期不得少于出厂保质期的三分之二","250ml*10瓶/箱","箱",10,10,12,32,null,null,"固定单价"]
[34,"盐焗粉","美味源或同档次以上","产品保质期不得少于出厂保质期的三分之二","250g/盒","盒",50,50,60,{"$f":"G38+H38+I38","v":160},null,null,"固定单价"]
[{"$f":"ROW(A35)","v":35},"豆腐乳","三和四美及同档次以上","产品保质期不得少于出厂保质期的三分之二","12瓶*500g/箱","箱",5,30,30,65,null,null,"固定单价"]
[36,"麻辣鲜","王守义或同档次以上","产品保质期不得少于出厂保质期的三分之二","102g*48包/箱","箱",15,20,30,65,null,null,"固定单价"]
[37,"十三香","王守义或同档次以上","产品保质期不得少于出厂保质期的三分之二","45g*100盒/箱","箱",10,230,20,260,null,null,"固定单价"]
[38,"黄面包糠","百利或同档次以上","产品保质期不得少于出厂保质期的三分之二","750g/包","包",20,30,50,100,null,null,"固定单价"]
[39,"花生酱","顶好或同档次以上","产品保质期不得少于出厂保质期的三分之二","200g/瓶","瓶",30,20,70,120,null,null,"固定单价"]
[40,"甜面酱","六月香或同档次以上","产品保质期不得少于出厂保质期的三分之二","250g/瓶","瓶",100,50,150,300,null,null,"固定单价"]
[41,"黄灯笼椒酱","左泉或同档次以上","产品保质期不得少于出厂保质期的三分之二","1kg*6桶/箱","箱",10,10,12,32,null,null,"固定单价"]
[42,"桶装黄豆酱","海天或同档次以上","产品保质期不得少于出厂保质期的三分之二","6kg/桶","桶",30,10,45,85,null,null,"固定单价"]
[43,"椒盐","味好美或同档次以上","产品保质期不得少于出厂保质期的三分之二","750g/瓶","瓶",30,10,60,100,null,null,"固定单价"]
[44,"芥末","珍鲜达或同档次以上","产品保质期不得少于出厂保质期的三分之二","43g/支","支",10,10,15,35,null,null,"固定单价"]
[45,"咸蛋黄酱","径山鸭牌蛋黄酱及同档次以上","产品保质期不得少于出厂保质期的三分之二","210g/瓶","瓶",20,10,20,50,null,null,"固定单价"]
[46,"咖喱粉 ","国良或同档次以上","产品保质期不得少于出厂保质期的三分之二","200g/包","包",30,30,40,100,null,null,"固定单价"]
[47,"孜然粉 ","国良或同档次以上","产品保质期不得少于出厂保质期的三分之二","200g/包","包",100,30,120,250,null,null,"固定单价"]
[48,"酥肉粉","国良或同档次以上","产品保质期不得少于出厂保质期的三分之二","100g/包","包",100,100,100,300,null,null,"固定单价"]
[49,"XO酱","李锦记或同档次以上","产品保质期不得少于出厂保质期的三分之二","80g/瓶","瓶",20,20,50,90,null,null,"固定单价"]
[50,"吉士粉","雄狮牌或同档次以上","产品保质期不得少于出厂保质期的三分之二","3kg/桶","桶",20,10,35,65,null,null,"固定单价"]
[51,"日式油醋汁","丘比或同档次以上","产品保质期不得少于出厂保质期的三分之二","1.5L/瓶","瓶",60,30,70,160,null,null,"固定单价"]
[52,"千岛酱","丘比或同档次以上","产品保质期不得少于出厂保质期的三分之二","1.1Kg/瓶","瓶",20,30,100,150,null,null,"固定单价"]
[53,"芝麻沙拉酱","丘比或同档次以上","产品保质期不得少于出厂保质期的三分之二","1.5L/瓶","瓶",30,30,100,160,null,null,"固定单价"]
[54,"沙拉酱【甜口味】","丘比或同档次以上","产品保质期不得少于出厂保质期的三分之二","1.0L/瓶","瓶",40,150,120,310,null,null,"固定单价"]
[55,"小米辣","宝飞或同档次以上","产品保质期不得少于出厂保质期的三分之二","2kg*6包/箱","箱",15,30,40,85,null,null,"固定单价"]
[56,"精制剁椒酱","宝飞或同档次以上","产品保质期不得少于出厂保质期的三分之二","1kg*6瓶/箱","箱",20,30,50,100,null,null,"固定单价"]
[57,"泰国木薯粉","水妈妈或同档次以上或同档次以上","产品保质期不得少于出厂保质期的三分之二","500g*20包/箱","箱",2,5,8,15,null,null,"固定单价"]
[58,"豆豉","江阳或同档次以上","产品保质期不得少于出厂保质期的三分之二","60g*60包/箱","箱",12,30,20,62,null,null,"固定单价"]
[59,"香料包","卞师傅或同档次以上","产品保质期不得少于出厂保质期的三分之二","20个/板","板",5,20,10,35,null,null,"固定单价"]
[60,"火腿肠","王中王或同档次以上","产品保质期不得少于出厂保质期的三分之二","35g*70支/箱","箱",3,10,10,23,null,null,"固定单价"]
[61,"紫菜袋料包","贝仙或同档次以上","产品保质期不得少于出厂保质期的三分之二","120包*10g/箱","箱",2,20,8,30,null,null,"固定单价"]
[62,"叉烧酱","李锦记或同档次以上","产品保质期不得少于出厂保质期的三分之二","240g*12瓶/箱","箱",8,10,25,43,null,null,"固定单价"]
[63,"香糟卤","咸亨或同档次以上","产品保质期不得少于出厂保质期的三分之二","500ml*12瓶/箱","箱",5,10,16,31,null,null,"固定单价"]
[64,"纯芝麻油","御膳或同档次以上","产品保质期不得少于出厂保质期的三分之二","450ml*12瓶/箱","箱",8,10,25,43,null,null,"固定单价"]
[65,"香菇酱","惠厨乐或同档次以上","产品保质期不得少于出厂保质期的三分之二","5kg/桶","桶",20,20,60,100,null,null,"固定单价"]
[66,"牛肉酱","惠厨乐或同档次以上","产品保质期不得少于出厂保质期的三分之二","6.5kg/桶","桶",20,20,60,100,null,null,"固定单价"]
[67,"绵白糖","福源或同档次以上","产品保质期不得少于出厂保质期的三分之二","50kg/包","包",10,10,25,45,null,null,"固定单价"]
[68,"草菇老抽","海天或同档次以上","产品保质期不得少于出厂保质期的三分之二","1.9L*6桶/箱","箱",20,30,60,110,null,null,"固定单价"]
[69,"花生酱","惠厨乐或同档次以上","产品保质期不得少于出厂保质期的三分之二","14kg/桶","桶",10,10,30,50,null,null,"固定单价"]
[70,"排骨酱","海天或同档次以上","产品保质期不得少于出厂保质期的三分之二","260g*15瓶/箱","箱",5,5,12,22,null,null,"固定单价"]
[{"$f":"ROW(A71)","v":71},"排骨酱","海天或同档次以上","产品保质期不得少于出厂保质期的三分之二","7kg*2桶/箱","箱",30,30,70,130,null,null,"固定单价"]
[72,"海鲜酱","海天或同档次以上","产品保质期不得少于出厂保质期的三分之二","7kg*2桶/箱","想",25,10,30,65,null,null,"固定单价"]
[73,"番茄酱","凤球唛或同档次以上","产品保质期不得少于出厂保质期的三分之二","850g*12罐/箱","箱",10,10,15,35,null,null,"固定单价"]
[74,"海南黄灯笼辣椒酱","健裕或同档次以上","产品保质期不得少于出厂保质期的三分之二","700g*12瓶/箱","箱",10,10,15,35,null,null,"固定单价"]
[75,"奥尔良腌制料","肴厨或同档次以上","产品保质期不得少于出厂保质期的三分之二","1kg/包","包",30,50,40,120]
[76,"山西老陈醋","晋霸或同档次以上","产品保质期不得少于出厂保质期的三分之二","5L/桶","桶",20,20,20,{"$f":"G80+H80+I80","v":60},null,null,"固定单价"]
[77,"黄油","安佳或同档次以上","产品保质期不得少于出厂保质期的三分之二","227g/块","块",70,70,100,240,null,null,"固定单价"]
[78,"桶装耗油","海天或同档次以上","产品保质期不得少于出厂保质期的三分之二","6kg*2桶/箱","箱",70,50,100,220,null,null,"固定单价"]
[79,"炼乳","熊猫或同档次以上","产品保质期不得少于出厂保质期的三分之二","350g/罐","罐",100,100,120,320,null,null,"固定单价"]
[80,"椰浆","金牌高达或同档次以上","产品保质期不得少于出厂保质期的三分之二","175ml/罐","罐",100,80,100,280,null,null,"固定单价"]
[81,"雀巢奶粉","雀巢或同档次以上","产品保质期不得少于出厂保质期的三分之二","500g/包","包",50,60,70,180,null,null,"固定单价"]
[82,"菠萝罐头",null,"产品保质期不得少于出厂保质期的三分之二",null,"箱",10,10,12,32,null,null,"固定单价"]
[83,"雀巢淡奶油","雀巢或同档次以上","产品保质期不得少于出厂保质期的三分之二","1l/盒","盒",70,100,110,280,null,null,"固定单价"]
[84,"三花植物淡奶","雀巢或同档次以上","产品保质期不得少于出厂保质期的三分之二","410ml/罐","罐",200,100,150,450,null,null,"固定单价"]
[85,"黄奶油","车轮牌或同档次以上","产品保质期不得少于出厂保质期的三分之二","16kg/桶","桶",15,10,25,50,null,null,"固定单价"]
[]
["饮料类"]
["序号","品名","参考品牌","产品质量要求","规格","单位","西溪\n年用量","湖滨\n年用量","钱塘\n年用量","暂定年用量","单价","合计金额","备注"]
[1,"茶π","农夫山泉或同档次以上","产品保质期不得少于出厂保质期的三分之二","500ml/瓶","瓶",1200,2000,2200,{"$f":"G93+H93+I93","v":5400},null,null,"固定单价"]
[2,"雪碧（大）","可口可乐或同档次以上","产品保质期不得少于出厂保质期的三分之二","2L*6瓶/瓶","瓶",50,100,120,270,null,null,"固定单价"]
[3,"雪碧 ","可口可乐或同档次以上","产品保质期不得少于出厂保质期的三分之二","500ml/瓶","瓶",1500,1500,1500,4500,null,null,"固定单价"]
[4,"芬达","可口可乐或同档次以上","产品保质期不得少于出厂保质期的三分之二","330ml/听","听",500,200,300,1000]
[5,"果粒橙（大）","美汁源或同档次以上","产品保质期不得少于出厂保质期的三分之二","1.25L/瓶","瓶",80,100,100,280,null,null,"固定单价"]
[6,"果粒橙","美汁源或同档次以上","产品保质期不得少于出厂保质期的三分之二","450ml/瓶","瓶",2000,2000,2000,6000,null,null,"固定单价"]
[7,"可口可乐 ","可口可乐或同档次以上","产品保质期不得少于出厂保质期的三分之二","500ml/瓶","瓶",1500,5000,4000,10500,null,null,"固定单价"]
[8,"无糖可乐","可口可乐或同档次以上","产品保质期不得少于出厂保质期的三分之二","330ml/瓶","听",1200,100,200,1500,null,null,"固定单价"]
[9,"可口可乐（大）","可口可乐或同档次以上","产品保质期不得少于出厂保质期的三分之二","2L/瓶","瓶",50,5000,5000,10050,null,null,"固定单价"]
[10,"水动乐","可口可乐或同档次以上","产品保质期不得少于出厂保质期的三分之二","600ml/瓶","瓶",3000,5000,5000,13000]
[11,"魔爪无糖饮料","可口可乐或同档次以上","产品保质期不得少于出厂保质期的三分之二","330ml/罐","罐",1500,3000,3000,7500]
[12,"阳光果味茶饮料","可口可乐或同档次以上","产品保质期不得少于出厂保质期的三分之二","500ml/瓶","瓶",2000,3000,3000,8000]
[13,"维生素功能饮料","红牛或档次以上","产品保质期不得少于出厂保质期的三分之二","250ml/瓶","瓶",500,1000,800,2300,null,null,"固定单价"]
[14,"活性维生素水","激活或同档次以上","产品保质期不得少于出厂保质期的三分之二","600ml/瓶","瓶",900,1000,800,2700,null,null,"固定单价"]
[15,"冰红茶","康师傅或同档次以上","产品保质期不得少于出厂保质期的三分之二","550ml/瓶","瓶",800,1000,1000,2800,null,null,"固定单价"]
[16,"茉莉花茶","康师傅或同档次以上","产品保质期不得少于出厂保质期的三分之二","500ml/瓶","瓶",500,1000,1000,2500]
[17,"绿茶","康师傅或同档次以上","产品保质期不得少于出厂保质期的三分之二","550ml/瓶","瓶",800,1000,1000,{"$f":"G109+H109+I109","v":2800},null,null,"固定单价"]
[18,"维生素饮料","脉动或同档次以上","产品保质期不得少于出厂保质期的三分之二","600ml/瓶","瓶",1200,2000,1800,5000,null,null,"固定单价"]
[19,"混合果汁饮料","农夫山泉或同档次以上","产品保质期不得少于出厂保质期的三分之二","500ml/瓶","瓶",500,1000,1000,2500,null,null,"固定单价"]
[20,"矿泉水（550ml）","农夫山泉或同档次以上","产品保质期不得少于出厂保质期的三分之二","550ml/瓶","瓶",15000,30000,32000,77000,null,null,"固定单价"]
[21,"矿泉水（380ml）","农夫山泉或同档次以上","产品保质期不得少于出厂保质期的三分之二","380ml/瓶","瓶",1000,1000,1000,3000,null,null,"固定单价"]
[22,"矿泉水(570ml)","百岁山或同档次以上","产品保质期不得少于出厂保质期的三分之二","570ml/瓶","瓶",4500,2000,3000,9500,null,null,"固定单价"]
[23,"咖啡","雀巢或同档次以上","产品保质期不得少于出厂保质期的三分之二","268ml/瓶","瓶",700,800,800,2300,null,null,"固定单价"]
[24,"雀巢茶萃","雀巢或同档次以上","产品保质期不得少于出厂保质期的三分之二","500ml/瓶","瓶",1000,1500,1500,4000]
[25,"水溶C","农夫山泉或同档次以上","产品保质期不得少于出厂保质期的三分之二","445ml/瓶","瓶",1200,3000,3000,7200,null,null,"固定单价"]
[26,"八宝粥","娃哈哈或同档次以上","产品保质期不得少于出厂保质期的三分之二","360g/罐","罐",500,2000,2000,4500,null,null,"固定单价"]
[27,"灭菌调味牛乳","旺仔或同档次以上","产品保质期不得少于出厂保质期的三分之二","245ml/罐","罐",500,1300,1300,3100,null,null,"固定单价"]
[28,"东方树叶","农夫山泉或同档次以上","产品保质期不得少于出厂保质期的三分之二","500ml/瓶","瓶",1500,1500,1500,4500,null,null,"固定单价"]
[29,"活性乳酸菌","味全或同档次以上","产品保质期不得少于出厂保质期的三分之二","435ml/瓶","瓶",1500,1500,1800,4800,null,null,"固定单价"]
[30,"冷泡茶","小茗同学或同档次以上","产品保质期不得少于出厂保质期的三分之二","480ml/瓶","瓶",500,500,500,1500,null,null,"固定单价"]
[31,"椰汁铁罐","椰树或同档次以上","产品保质期不得少于出厂保质期的三分之二","245ml/瓶","瓶",1000,1500,1200,3700,null,null,"固定单价"]
[32,"营养快线","娃哈哈或同档次以上","产品保质期不得少于出厂保质期的三分之二","500ml/瓶","瓶",1200,1500,1500,4200,null,null,"固定单价"]
[33,"乌龙茶","三得利或同档次以上","产品保质期不得少于出厂保质期的三分之二","500ml/瓶","瓶",1800,2000,1500,5300,null,null,"固定单价"]
[34,"凉茶饮料","王老吉或同档次以上","产品保质期不得少于出厂保质期的三分之二","310ml/听","听",500,800,1000,2300,null,null,"固定单价"]
[35,"纯净水","娃哈哈或同档次以上","产品保质期不得少于出厂保质期的三分之二","596ml/瓶","瓶",30000,30000,30000,90000,null,null,"固定单价"]
[36,"茉莉花茶","娃哈哈或同档次以上","产品保质期不得少于出厂保质期的三分之二","500ml/瓶","瓶",1000,1000,1000,3000,null,null,"固定单价"]
[37,"桃园茶事","娃哈哈或同档次以上","产品保质期不得少于出厂保质期的三分之二","500ml/瓶","瓶",1000,1000,800,2800,null,null,"固定单价"]
[38,"阿萨姆奶茶","统一或同档次以上","产品保质期不得少于出厂保质期的三分之二","500ml/瓶","瓶",600,1000,800,2400,null,null,"固定单价"]
[39,"AD钙奶","娃哈哈或同档次以上","产品保质期不得少于出厂保质期的三分之二","220g/瓶","瓶",600,2800,2500,{"$f":"G131+H131+I131","v":5900},null,null,"固定单价"]
[40,"弱碱苏打水","娃哈哈或同档次以上","产品保质期不得少于出厂保质期的三分之二","500ml/瓶","瓶",3000,1000,2000,6000,null,null,"固定单价"]
[41,"宋柚汁","柚香谷或同档次以上","产品保质期不得少于出厂保质期的三分之二","300g/瓶","瓶",1500,1000,1200,3700,null,null,"固定单价"]
[42,"自在水","元气森林或同档次以上","产品保质期不得少于出厂保质期的三分之二","500ml/瓶","瓶",300,500,300,1100,null,null,"固定单价"]
[43,"每日C果汁","味全或同档次以上","产品保质期不得少于出厂保质期的三分之二","300ml/瓶","瓶",2000,2000,2200,6200,null,null,"固定单价"]
[44,"柠檬茶","维他或同档次以上","产品保质期不得少于出厂保质期的三分之二","250ml/盒","盒",2000,1500,1800,5300,null,null,"固定单价"]
[45,"电解质水","元气森林或同档次以上","产品保质期不得少于出厂保质期的三分之二","500ml/瓶","瓶",300,500,500,1300,null,null,"固定单价"]
[46,"气泡水","元气森林或同档次以上","产品保质期不得少于出厂保质期的三分之二","480ml/瓶","瓶",500,500,500,1500,null,null,"固定单价"]
[47,"佳得乐","百事或同档次以上","产品保质期不得少于出厂保质期的三分之二","600ml/瓶","瓶",300,1000,1000,2300,null,null,"固定单价"]
[48,"功能型饮料","尖叫或同档次以上","产品保质期不得少于出厂保质期的三分之二","550ml/瓶","瓶",600,1200,1200,3000,null,null,"固定单价"]
[49,"功能饮料","东鹏或同档次以上","产品保质期不得少于出厂保质期的三分之二","500ml/瓶","瓶",300,800,800,1900,null,null,"固定单价"]
[50,"汽水","大窑或同档次以上","产品保质期不得少于出厂保质期的三分之二","520ml/瓶    ","瓶",300,800,800,1900,null,null,"固定单价"]
[]
[{"$nulls":3},"小菜类"]
["序号","品名","参考品牌","产品质量要求","规格","单位","西溪\n年用量","湖滨\n年用量","钱塘\n年用量","暂定年用量","单价","合计金额","备注"]
[1,"榨菜丝","杭帮、金博林或同档次以上","产品保质期不得少于出厂保质期的三分之二","4.5斤*6包/箱","箱",50,60,150,{"$f":"G146+H146+I146","v":260},null,null,"固定单价"]
[2,"八宝菜","家明或同档次以上","产品保质期不得少于出厂保质期的三分之二","12kg/箱","箱",50,10,150,210,null,null,"固定单价"]
[3,"八宝酱丁","永超或同档次以上","产品保质期不得少于出厂保质期的三分之二","5㎏/箱","箱",50,10,150,210,null,null,"固定单价"]
[4,"红油酸豆角","永超或同档次以上","产品保质期不得少于出厂保质期的三分之二","4.5㎏/箱","箱",80,10,150,240,null,null,"固定单价"]
[5,"榨菜","杭帮或同档次以上","产品保质期不得少于出厂保质期的三分之二","50g*100包/箱","箱",1000,300,1500,2800,null,null,"固定单价"]
[6,"雪菜王  ","紫云堂或同档次以上","产品保质期不得少于出厂保质期的三分之二","150g*50包/箱","箱",400,200,800,1400,null,null,"固定单价"]
[7,"台湾酸菜",null,"产品保质期不得少于出厂保质期的三分之二","3kg/桶","桶",80,null,200,280,null,null,"固定单价"]
[8,"酸菜","李记乐宝或同档次以上","产品保质期不得少于出厂保质期的三分之二","250g*40包/箱","箱",100,100,150,{"$f":"G153+H153+I153","v":350},null,null,"固定单价"]
[9,"小菜【榨菜芯.洋姜等】","都市小菜或同档次以上","产品保质期不得少于出厂保质期的三分之二","25g*200包/箱","箱",500,700,900,2100,null,null,"固定单价"]
[10,"特制肉酥","唯新或同档次以上","产品保质期不得少于出厂保质期的三分之二","500g/袋（50小包）","袋",300,300,600,1200,null,null,"固定单价"]
[11,"木糖醇肉酥","唯新或同档次以上","产品保质期不得少于出厂保质期的三分之二","500g/袋（50小包）","袋",100,100,150,350,null,null,"固定单价"]
[12,"红油笋丝","永超或同档次以上","产品保质期不得少于出厂保质期的三分之二","5kg/箱","箱",50,50,80,180,null,null,"固定单价"]
[13,"酱瓜","永超、豫盛威或同档次以上","产品保质期不得少于出厂保质期的三分之二","2.5kg/箱","箱",50,50,80,180,null,null,"固定单价"]
[14,"糖蒜","泇河小菜或同档次以上","产品保质期不得少于出厂保质期的三分之二","散称","斤",100,100,150,350,null,null,"固定单价"]
[15,"脆菜心","乌江或同档次以上","产品保质期不得少于出厂保质期的三分之二","500克/包","包",50,50,80,180,null,null,"固定单价"]
[16,"外婆菜","湘西或同档次以上","产品保质期不得少于出厂保质期的三分之二","5kg/箱","箱",30,30,50,110,null,null,"固定单价"]
[17,"榨菜","小蒋或同档次以上","产品保质期不得少于出厂保质期的三分之二","102g*50包/箱","箱",30,30,50,110,null,null,"固定单价"]
[]
[{"$nulls":3},"干货"]
["序号","品名",null,"产品质量要求","规格","单位","西溪\n年用量","湖滨\n年用量","钱塘\n年用量","暂定年用量","单价","合计金额","备注"]
[1,"紫菜","散装","一级，产品保质期不得少于保质期的三分之二",null,"斤",30,20,90,{"$f":"G166+H166+I166","v":140},null,null,"固定单价"]
[2,"红豆","散装","一级，产品保质期不得少于保质期的三分之二",null,"斤",300,300,1000,{"$f":"G167+H167+I167","v":1600},null,null,"固定单价"]
[3,"红枣","散装","一级，产品保质期不得少于保质期的三分之二",null,"斤",50,60,180,290,null,null,"固定单价"]
[4,"红皮花生米","散装","一级，产品保质期不得少于保质期的三分之二",null,"斤",70,20,200,290,null,null,"固定单价"]
[5,"花生米","散装","一级，产品保质期不得少于保质期的三分之二",null,"斤",600,600,2000,3200,null,null,"固定单价"]
[6,"无核干桂圆肉","散装","一级，产品保质期不得少于保质期的三分之二",null,"斤",30,60,90,180,null,null,"固定单价"]
[7,"无核红枣","散装","一级，产品保质期不得少于保质期的三分之二",null,"斤",50,200,160,410,null,null,"固定单价"]
[8,"无心莲子","散装","一级，产品保质期不得少于保质期的三分之二",null,"斤",50,50,150,250,null,null,"固定单价"]
[9,"枸杞","散装","一级，产品保质期不得少于保质期的三分之二",null,"斤",20,40,60,120,null,null,"固定单价"]
[10,"黑豆","散装","一级，产品保质期不得少于保质期的三分之二",null,"斤",200,100,600,900,null,null,"固定单价"]
[11,"黑米","散装","一级，产品保质期不得少于保质期的三分之二",null,"斤",1200,1500,3600,6300,null,null,"固定单价"]
[12,"绿豆","散装","一级，产品保质期不得少于保质期的三分之二",null,"斤",200,200,800,1200,null,null,"固定单价"]
[13,"脱皮绿豆","散装","一级，产品保质期不得少于保质期的三分之二",null,"斤",50,50,150,250,null,null,"固定单价"]
[14,"小米","散装","一级，产品保质期不得少于保质期的三分之二",null,"斤",1000,100,1200,2300,null,null,"固定单价"]
[15,"银耳","散装","一级，产品保质期不得少于保质期的三分之二",null,"斤",30,30,100,160,null,null,"固定单价"]
[16,"紫米","散装","一级，产品保质期不得少于保质期的三分之二",null,"斤",20,1000,100,1120,null,null,"固定单价"]
[17,"八宝米","散装","一级，产品保质期不得少于保质期的三分之二",null,"斤",150,50,200,400,null,null,"固定单价"]
[18,"白芝麻","散装","一级，产品保质期不得少于保质期的三分之二",null,"斤",150,500,500,1150,null,null,"固定单价"]
[19,"黑芝麻","散装","一级，产品保质期不得少于保质期的三分之二",null,"斤",50,50,200,300,null,null,"固定单价"]
[20,"腰果","散装","一级，产品保质期不得少于保质期的三分之二",null,"斤",30,30,80,140,null,null,"固定单价"]
[21,"熟腰果","散装","一级，产品保质期不得少于保质期的三分之二",null,"斤",20,30,100,150,null,null,"固定单价"]
[22,"干木耳","散装","一级，产品保质期不得少于保质期的三分之二",null,"斤",200,230,800,1230,null,null,"固定单价"]
[23,"小干木耳","散装","一级，产品保质期不得少于保质期的三分之二",null,"斤",30,30,100,160,null,null,"固定单价"]
[24,"干香菇","散装","一级，产品保质期不得少于保质期的三分之二",null,"斤",300,450,500,1250,null,null,"固定单价"]
[25,"干豇豆","散装","一级，产品保质期不得少于保质期的三分之二",null,"斤",200,450,500,1150,null,null,"固定单价"]
[26,"干茶树菇","散装","一级，产品保质期不得少于保质期的三分之二",null,"斤",200,200,220,620,null,null,"固定单价"]
[27,"虫草花","散装","一级，产品保质期不得少于保质期的三分之二","350g/包","包",50,50,50,150,null,null,"固定单价"]
[28,"干桑葚","散装","一级，产品保质期不得少于保质期的三分之二",null,"斤",15,20,30,65,null,null,"固定单价"]
[29,"番薯粉丝","散装","一级，产品保质期不得少于保质期的三分之二",null,"斤",600,1600,2600,4800,null,null,"固定单价"]
[30,"干粉条","散装","一级，产品保质期不得少于保质期的三分之二",null,"斤",200,800,900,1900,null,null,"固定单价"]
[31,"米粉干","散装","一级，产品保质期不得少于保质期的三分之二",null,"斤",300,500,600,1400,null,null,"固定单价"]
[32,"圆饼粉干","散装","一级，产品保质期不得少于保质期的三分之二",null,"斤",100,500,420,1020,null,null,"固定单价"]
[33,"龙口粉丝","散装","一级，产品保质期不得少于保质期的三分之二","500g/包","包",50,200,170,420,null,null,"固定单价"]
[34,"腐竹","散装","一级，产品保质期不得少于保质期的三分之二",null,"斤",300,300,1200,{"$f":"G199+H199+I199","v":1800},null,null,"固定单价"]
[35,"小米粉","散装","一级，产品保质期不得少于保质期的三分之二",null,"斤",40,50,100,190,null,null,"固定单价"]
[36,"黑米粉","散装","一级，产品保质期不得少于保质期的三分之二",null,"斤",50,50,100,200,null,null,"固定单价"]
[37,"血糯米","散装","一级，产品保质期不得少于保质期的三分之二","500g/包","包",30,30,50,110,null,null,"固定单价"]
[38,"玉米粉","散装","一级，产品保质期不得少于保质期的三分之二",null,"斤",50,50,60,160,null,null,"固定单价"]
[39,"临安笋干","散装","一级，产品保质期不得少于保质期的三分之二",null,"斤",500,600,1000,2100,null,null,"固定单价"]
[40,"葡萄干","散装","一级，产品保质期不得少于保质期的三分之二",null,"斤",35,30,50,115,null,null,"固定单价"]
[41,"干话梅","散装","一级，产品保质期不得少于保质期的三分之二",null,"斤",20,20,40,80,null,null,"固定单价"]
[42,"芸豆","散装","一级，产品保质期不得少于保质期的三分之二",null,"斤",30,30,50,110,null,null,"固定单价"]
[43,"粽叶","散装","一级，产品保质期不得少于保质期的三分之二",null,"斤",15,40,50,105,null,null,"固定单价"]
[44,"虾皮","散装","一级，产品保质期不得少于保质期的三分之二",null,"斤",30,30,35,95,null,null,"固定单价"]
[45,"虾片","散装","一级，产品保质期不得少于保质期的三分之二",null,"斤",20,30,100,150,null,null,"固定单价"]
[46,"万年青","散装","一级，产品保质期不得少于保质期的三分之二","350g/包","包",150,200,300,650,null,null,"固定单价"]
[47,"人参花","散装","一级，产品保质期不得少于保质期的三分之二",null,"斤",5,2,10,17,null,null,"固定单价"]
[48,"干桂花","散装","一级，产品保质期不得少于保质期的三分之二",null,"斤",4,5,10,19,null,null,"固定单价"]
[49,"干茉莉花","散装","一级，产品保质期不得少于保质期的三分之二",null,"斤",5,5,15,25,null,null,"固定单价"]
[50,"红枣片","散装","一级，产品保质期不得少于保质期的三分之二",null,"斤",10,150,50,210,null,null,"固定单价"]
[51,"红糖","散装","一级，产品保质期不得少于保质期的三分之二",null,"斤",30,80,120,230,null,null,"固定单价"]
[52,"冰糖","散装","一级，产品保质期不得少于保质期的三分之二",null,"斤",70,50,120,240,null,null,"固定单价"]
[53,"土冰糖","散装","一级，产品保质期不得少于保质期的三分之二",null,"斤",70,50,120,240,null,null,"固定单价"]
[54,"大黄米","散装","一级，产品保质期不得少于保质期的三分之二",null,"斤",50,50,200,300,null,null,"固定单价"]
[55,"梅干菜","散装","一级，产品保质期不得少于保质期的三分之二",null,"斤",600,800,1000,2400,null,null,"固定单价"]
[56,"干辣椒段","散装","一级，产品保质期不得少于保质期的三分之二",null,"斤",300,200,800,1300,null,null,"固定单价"]
[57,"干辣椒","散装","一级，产品保质期不得少于保质期的三分之二",null,"斤",200,100,600,900,null,null,"固定单价"]
[58,"干辣椒片","散装","一级，产品保质期不得少于保质期的三分之二",null,"斤",200,100,600,900,null,null,"固定单价"]
[59,"干辣椒粉","散装","一级，产品保质期不得少于保质期的三分之二",null,"斤",50,100,120,270,null,null,"固定单价"]
[60,"花椒","散装","一级，产品保质期不得少于保质期的三分之二",null,"斤",60,50,80,190,null,null,"固定单价"]
[61,"八角","散装","一级，产品保质期不得少于保质期的三分之二",null,"斤",50,20,80,150,null,null,"固定单价"]
[62,"桂皮","散装","一级，产品保质期不得少于保质期的三分之二",null,"斤",60,20,180,260,null,null,"固定单价"]
[63,"良姜","散装","一级，产品保质期不得少于保质期的三分之二",null,"斤",10,10,20,40,null,null,"固定单价"]
[64,"草果","散装","一级，产品保质期不得少于保质期的三分之二",null,"斤",20,10,50,80,null,null,"固定单价"]
[65,"川穹","散装","一级，产品保质期不得少于保质期的三分之二",null,"斤",20,10,50,80,null,null,"固定单价"]
[66,"山奈","散装","一级，产品保质期不得少于保质期的三分之二",null,"斤",10,10,30,{"$f":"G231+H231+I231","v":50},null,null,"固定单价"]
[67,"香果","散装","一级，产品保质期不得少于保质期的三分之二",null,"斤",20,10,50,80,null,null,"固定单价"]
[68,"陈皮","散装","一级，产品保质期不得少于保质期的三分之二",null,"斤",20,10,40,70,null,null,"固定单价"]
[69,"毛桃","散装","一级，产品保质期不得少于保质期的三分之二",null,"斤",10,10,15,35,null,null,"固定单价"]
[70,"小茴香","散装","一级，产品保质期不得少于保质期的三分之二",null,"斤",10,10,15,35,null,null,"固定单价"]
[71,"白扣","散装","一级，产品保质期不得少于保质期的三分之二",null,"斤",10,10,15,35,null,null,"固定单价"]
[72,"白芍","散装","一级，产品保质期不得少于保质期的三分之二",null,"斤",10,10,15,35,null,null,"固定单价"]
[73,"白芷","散装","一级，产品保质期不得少于保质期的三分之二",null,"斤",10,10,15,35,null,null,"固定单价"]
[74,"当归","散装","一级，产品保质期不得少于保质期的三分之二",null,"斤",10,10,15,35,null,null,"固定单价"]
[75,"党参","散装","一级，产品保质期不得少于保质期的三分之二",null,"斤",10,10,15,35,null,null,"固定单价"]
[76,"丁香","散装","一级，产品保质期不得少于保质期的三分之二",null,"斤",10,10,15,35,null,null,"固定单价"]
[77,"干百合","散装","一级，产品保质期不得少于保质期的三分之二",null,"斤",10,10,15,35,null,null,"固定单价"]
[78,"甘草","散装","一级，产品保质期不得少于保质期的三分之二",null,"斤",10,10,15,35,null,null,"固定单价"]
[79,"砂仁","散装","一级，产品保质期不得少于保质期的三分之二",null,"斤",10,10,15,35,null,null,"固定单价"]
[80,"黄芪","散装","一级，产品保质期不得少于保质期的三分之二",null,"斤",15,10,15,40,null,null,"固定单价"]
[81,"罗汉果","散装","一级，产品保质期不得少于保质期的三分之二",null,"斤",10,10,15,35,null,null,"固定单价"]
[82,"沙参","散装","一级，产品保质期不得少于保质期的三分之二",null,"斤",10,10,15,35,null,null,"固定单价"]
[83,"香茅草","散装","一级，产品保质期不得少于保质期的三分之二",null,"斤",10,10,15,35,null,null,"固定单价"]
[84,"亚麻籽","散装","一级，产品保质期不得少于保质期的三分之二",null,"斤",10,10,15,35,null,null,"固定单价"]
[85,"阳春砂","散装","一级，产品保质期不得少于保质期的三分之二",null,"斤",10,10,15,35,null,null,"固定单价"]
[86,"玉竹","散装","一级，产品保质期不得少于保质期的三分之二",null,"斤",10,10,15,35,null,null,"固定单价"]
[87,"栀子","散装","一级，产品保质期不得少于保质期的三分之二",null,"斤",10,10,15,35,null,null,"固定单价"]
[88,"杨兰花","散装","一级，产品保质期不得少于保质期的三分之二","12支/束","束",5,10,10,25,null,null,"固定单价"]
[89,"荷兰芹","散装","一级，产品保质期不得少于保质期的三分之二",null,"斤",5,10,10,25,null,null,"固定单价"]
[90,"生核桃仁","散装","一级，产品保质期不得少于保质期的三分之二",null,"斤",15,10,20,45,null,null,"固定单价"]
[91,"瓜子仁","散装","一级，产品保质期不得少于保质期的三分之二",null,"斤",15,10,20,45,null,null,"固定单价"]
[92,"红绿丝","散装","一级，产品保质期不得少于保质期的三分之二",null,"斤",5,10,10,25,null,null,"固定单价"]
[93,"冬瓜条干","散装","一级，产品保质期不得少于保质期的三分之二",null,"斤",5,10,10,25,null,null,"固定单价"]
[94,"圣女果干","散装","一级，产品保质期不得少于保质期的三分之二",null,"斤",5,10,10,25,null,null,"固定单价"]
[95,"猕猴桃干","散装","一级，产品保质期不得少于保质期的三分之二",null,"斤",5,10,15,30,null,null,"固定单价"]
[96,"顺佳金桔干","散装","一级，产品保质期不得少于保质期的三分之二",null,"斤",5,10,15,30,null,null,"固定单价"]
[97,"松子仁","散装","一级，产品保质期不得少于保质期的三分之二",null,"斤",5,10,15,30,null,null,"固定单价"]
[98,"青梅干（去核）","散装","一级，产品保质期不得少于保质期的三分之二",null,"斤",5,10,15,30,null,null,"固定单价"]
[99,"红莓干（去核）","散装","一级，产品保质期不得少于保质期的三分之二",null,"斤",5,10,15,30,null,null,"固定单价"]
[100,"哈密瓜干","散装","一级，产品保质期不得少于保质期的三分之二",null,"斤",5,10,15,30,null,null,"固定单价"]
[101,"蜜枣","散装","一级，产品保质期不得少于保质期的三分之二",null,"斤",15,10,15,40,null,null,"固定单价"]
[102,"薏米","散装","一级，产品保质期不得少于保质期的三分之二",null,"斤",80,200,200,480,null,null,"固定单价"]
[103,"香叶","散装","一级，产品保质期不得少于保质期的三分之二",null,"斤",10,10,15,35,null,null,"固定单价"]
[104,"白果","散装","一级，产品保质期不得少于保质期的三分之二","200g/包","包",10,10,15,35,null,null,"固定单价"]
[105,"淡菜","散装","一级，产品保质期不得少于保质期的三分之二",null,"斤",30,10,25,65,null,null,"固定单价"]
[106,"黄金豆","散装","一级，产品保质期不得少于保质期的三分之二","2.5㎏/包","包",15,10,15,40,null,null,"固定单价"]
[107,"方便面","康师傅或同档次以上","产品保质期不得少于出厂保质期的三分之二","113g*12桶/箱","箱",30,300,300,630,null,null,"固定单价"]
[108,"3+2饼干","康师傅或同档次以上","产品保质期不得少于出厂保质期的三分之二","125g/盒","盒",100,500,500,1100,null,null,"固定单价"]
[109,"饼干","奥利奥或同档次以上","产品保质期不得少于出厂保质期的三分之二","116g/盒","盒",100,400,500,1000,null,null,"固定单价"]
[110,"藜麦","散装","一级，产品保质期不得少于保质期的三分之二","散称","斤",100,100,120,320,null,null,"固定单价"]
[]
[{"$nulls":4},"豆制品"]
["序号","品名","参考品牌","产品质量要求","规格","单位","西溪\n年用量","湖滨\n年用量","钱塘\n年用量","暂定年用量","单价","合计金额","备注"]
[1,"豆腐","鸿光、祖名或同档次以上","新鲜无隔夜","7kg/板","板",400,700,800,{"$f":"G279+H279+I279","v":1900},null,null,"固定单价"]
[2,"老豆腐","鸿光、祖名或同档次以上","新鲜无隔夜","8kg/板","板",120,150,260,{"$f":"G280+H280+I280","v":530},null,null,"固定单价"]
[3,"白香干","鸿光、祖名或同档次以上","产品保质期不得少于出厂保质期的三分之二",null,"斤",800,500,1500,2800,null,null,"固定单价"]
[4,"白香干丝","鸿光、祖名或同档次以上","产品保质期不得少于出厂保质期的三分之二",null,"斤",1500,2000,2200,5700,null,null,"固定单价"]
[5,"茶干","鸿光、祖名或同档次以上","产品保质期不得少于出厂保质期的三分之二",null,"斤",500,500,800,1800,null,null,"固定单价"]
[6,"豆腐皮","鸿光、祖名或同档次以上","产品保质期不得少于出厂保质期的三分之二",null,"斤",200,200,600,1000,null,null,"固定单价"]
[7,"千张结","鸿光、祖名或同档次以上","产品保质期不得少于出厂保质期的三分之二",null,"斤",500,400,1000,1900,null,null,"固定单价"]
[8,"薄行干片","鸿光、祖名或同档次以上","产品保质期不得少于出厂保质期的三分之二",null,"斤",600,800,1600,3000,null,null,"固定单价"]
[9,"薄行干丝","鸿光、祖名或同档次以上","产品保质期不得少于出厂保质期的三分之二",null,"斤",600,800,1500,2900,null,null,"固定单价"]
[10,"臭豆腐","鸿光、祖名或同档次以上","产品保质期不得少于出厂保质期的三分之二","250g/盒","盒",300,200,600,1100,null,null,"固定单价"]
[11,"内脂豆腐 ","鸿光、祖名或同档次以上","产品保质期不得少于出厂保质期的三分之二","400g/盒","盒",800,1000,1500,3300,null,null,"固定单价"]
[12,"五香干","鸿光、祖名或同档次以上","产品保质期不得少于出厂保质期的三分之二",null,"斤",800,2500,1500,4800,null,null,"固定单价"]
[13,"厚千张","鸿光、祖名或同档次以上","产品保质期不得少于出厂保质期的三分之二",null,"斤",120,600,360,1080,null,null,"固定单价"]
[14,"薄千张","鸿光、祖名或同档次以上","产品保质期不得少于出厂保质期的三分之二",null,"斤",1000,400,2500,3900,null,null,"固定单价"]
[15,"香干","鸿光、祖名或同档次以上","产品保质期不得少于出厂保质期的三分之二",null,"斤",500,500,1200,2200,null,null,"固定单价"]
[16,"小素鸡","鸿光、祖名或同档次以上","产品保质期不得少于出厂保质期的三分之二",null,"斤",2000,2000,4000,8000,null,null,"固定单价"]
[17,"小油豆腐","鸿光、祖名或同档次以上","产品保质期不得少于出厂保质期的三分之二",null,"斤",200,2500,2000,4700,null,null,"固定单价"]
[18,"大油豆腐","鸿光、祖名或同档次以上","产品保质期不得少于出厂保质期的三分之二",null,"斤",300,200,500,1000,null,null,"固定单价"]
[19,"大油方","鸿光、祖名或同档次以上","产品保质期不得少于出厂保质期的三分之二",null,"斤",300,600,800,1700,null,null,"固定单价"]
[20,"日本豆腐","鸿光、祖名或同档次以上","产品保质期不得少于出厂保质期的三分之二","110g*30支/箱","箱",30,10,90,130,null,null,"固定单价"]
[21,"油面筋","鸿光、祖名或同档次以上","产品保质期不得少于出厂保质期的三分之二",null,"斤",400,300,1000,1700,null,null,"固定单价"]
[22,"豆奶","鸿光、祖名或同档次以上","产品保质期不得少于出厂保质期的三分之二","250ml/袋","袋",10000,5000,5000,20000,null,null,"固定单价"]
[23,"茶干","鸿光、祖名或同档次以上","产品保质期不得少于出厂保质期的三分之二",null,"斤",300,300,600,1200,null,null,"固定单价"]
[24,"素牛肉","鸿光、祖名或同档次以上","产品保质期不得少于出厂保质期的三分之二","1kg/包","包",200,300,600,1100,null,null,"固定单价"]
[25,"小油方","鸿光、祖名或同档次以上","产品保质期不得少于出厂保质期的三分之二","1kg/包","包",200,300,600,1100,null,null,"固定单价"]
[]
[{"$nulls":3},"冻品类"]
["序号","品名","参考品牌","产品质量要求","规格","单位","西溪\n年用量","湖滨\n年用量","钱塘\n年用量","暂定年用量","单价","合计金额","备注"]
[1,"鸡翅根","大成或同档次以上","产品保质期不得少于出厂保质期的三分之二","10kg/箱","箱",120,200,150,{"$f":"G307+H307+I307","v":470}]
[2,"鸡翅中","大成或同档次以上","产品保质期不得少于出厂保质期的三分之二","10㎏/箱","箱",120,160,130,410]
[3,"鸡米花","学子膳或同档次以上","产品保质期不得少于出厂保质期的三分之二","10㎏/箱","箱",100,100,100,300]
[4,"琵琶腿","大成或同档次以上","产品保质期不得少于出厂保质期的三分之二","10kg/箱","箱",120,60,60,240]
[5,"全翅","光阳或同档次以上","产品保质期不得少于出厂保质期的三分之二","6㎏/箱","箱",150,600,200,950]
[6,"鸡尖","大成或同档次以上","产品保质期不得少于出厂保质期的三分之二","10㎏/箱","箱",20,15,15,50]
[7,"鸡胗","雅士京或同档次以上","产品保质期不得少于出厂保质期的三分之二","10㎏/箱","箱",15,15,15,45]
[8,"凤爪","大成或同档次以上","产品保质期不得少于出厂保质期的三分之二","9.8㎏/箱","箱",20,30,40,90]
[9,"带柄长爪","新盛或同档次以上","产品保质期不得少于出厂保质期的三分之二","10㎏/箱","箱",30,30,30,90]
[10,"腊鸡腿","峰羽或同档次以上","产品保质期不得少于出厂保质期的三分之二","10㎏/箱","箱",70,50,60,180]
[11,"滑油鸡丁","学子膳或同档次以上","产品保质期不得少于出厂保质期的三分之二","10㎏/箱","箱",40,40,40,120]
[12,"鸭腿 ","六和或同档次以上","产品保质期不得少于出厂保质期的三分之二","10kg/箱","箱",500,850,700,2050]
[13,"半片鸭","六和或同档次以上","产品保质期不得少于出厂保质期的三分之二","7.8kg/箱","箱",60,60,80,200]
[14,"鸭边腿","六和或同档次以上","产品保质期不得少于出厂保质期的三分之二","10kg/箱","箱",100,60,100,260]
[15,"鸭爪","六和或同档次以上","产品保质期不得少于出厂保质期的三分之二","12㎏/箱","箱",20,20,20,{"$f":"G321+H321+I321","v":60}]
[16,"鸭头","六和或同档次以上","产品保质期不得少于出厂保质期的三分之二","10kg/箱","箱",20,20,20,60]
[17,"鸭翅","六和或同档次以上","产品保质期不得少于出厂保质期的三分之二","12kg/箱","箱",10,15,15,40]
[18,"鸭胗","六和或同档次以上","产品保质期不得少于出厂保质期的三分之二","10㎏/箱","箱",15,30,30,75]
[19,"鸭锁骨","六和或同档次以上","产品保质期不得少于出厂保质期的三分之二","10kg/箱","箱",10,30,30,70]
[20,"雪花牛仔粒","如意三宝或同档次以上","产品保质期不得少于出厂保质期的三分之二","300g*30包/箱","箱",20,10,20,50]
[21,"雪花排条","学子膳或同档次以上","产品保质期不得少于出厂保质期的三分之二","1.75kg*4包/箱","箱",30,30,30,90]
[22,"雪花肉排","学子膳或同档次以上","产品保质期不得少于出厂保质期的三分之二","1.75kg*4包（25片/包）/箱","箱",20,30,30,80]
[23,"蒜香骨","如意三宝或同档次以上","产品保质期不得少于出厂保质期的三分之二","500g*20包/箱","箱",50,60,50,160]
[24,"蒜香仔排","如意三宝或同档次以上","产品保质期不得少于出厂保质期的三分之二","10㎏/箱","箱",50,120,60,230]
[25,"鸡脯肉","大成或同档次以上","产品保质期不得少于出厂保质期的三分之二","10㎏/箱","箱",60,60,60,180]
[26,"鸭血 ","鸿雁或同档次以上","产品保质期不得少于出厂保质期的三分之二","300g*20盒/箱","箱",20,30,30,80]
[27,"米兰虾饼","红云或同档次以上","产品保质期不得少于出厂保质期的三分之二","10个*12包/箱","箱",30,30,30,90]
[28,"卡滋脆鸡排","学子膳或同档次以上","产品保质期不得少于出厂保质期的三分之二","2.5kg*4包*100片/箱","箱",150,100,100,350]
[29,"奥尔良早餐腿排","大成或同档次以上","产品保质期不得少于出厂保质期的三分之二","10kg/箱","箱",30,30,30,90]
[30,"奥尔良风味琵琶腿","大成或同档次以上","产品保质期不得少于出厂保质期的三分之二","2.5kg*4包/箱","箱",130,100,100,330]
[31,"地道肠（黑胡椒味）","臻享受或同档次以上","产品保质期不得少于出厂保质期的三分之二","3kg*4包/箱","箱",65,50,60,175]
[32,"酱牛柳","易太或同档次以上","产品保质期不得少于出厂保质期的三分之二","300g*25包/箱","箱",50,200,150,400]
[33,"鸭翅中","六合或同档次以上","产品保质期不得少于出厂保质期的三分之二",null,"斤",300,300,300,900]
[34,"鸭脖子","六合或同档次以上","产品保质期不得少于出厂保质期的三分之二",null,"斤",100,100,100,300]
[35,"黄鱼鲞","散称","产品保质期不得少于出厂保质期的三分之二",null,"斤",100,50,100,{"$f":"G341+H341+I341","v":250}]
[36,"黑椒牛仔骨","馔玉或同档次以上","产品保质期不得少于出厂保质期的三分之二","400g*20包/箱","箱",20,150,80,250]
[37,"安井鱼丸","安井或同档次以上","产品保质期不得少于出厂保质期的三分之二","2.5kg*4包/箱","箱",15,20,15,50]
[38,"香菇贡丸","唯新、安井或同档次以上","产品保质期不得少于出厂保质期的三分之二","2.5kg*4包/箱","箱",15,10,15,40]
[39,"包心贡丸","唯新、安井或同档次以上","产品保质期不得少于出厂保质期的三分之二","2.5kg4包/箱","箱",15,10,15,40]
[40,"包心鱼丸","唯新、安井或同档次以上","产品保质期不得少于出厂保质期的三分之二","10㎏/箱","箱",15,100,80,195]
[41,"地瓜丸","阿诺或同档次以上","产品保质期不得少于出厂保质期的三分之二","22g*20个*10盒/箱","箱",15,10,15,40]
[42,"龙游发糕","御味隆或同档次以上","产品保质期不得少于出厂保质期的三分之二","700g*12包/箱","箱",20,20,20,60]
[43,"山药卷","阿诺或同档次以上","产品保质期不得少于出厂保质期的三分之二","220g*20包/箱","箱",15,10,20,45]
[44,"手抓饼 ","安井或同档次以上","产品保质期不得少于出厂保质期的三分之二","900g*8包/箱","箱",25,20,20,65]
[45,"乌米饭","东泉或同档次以上","产品保质期不得少于出厂保质期的三分之二","450g*10包/箱","箱",5,10,12,27]
[46,"蛋饺","安井或同档次以上","产品保质期不得少于出厂保质期的三分之二"," 7㎏/箱","箱",150,100,120,370]
[47,"酱鸭","万隆或同档次以上","产品保质期不得少于出厂保质期的三分之二","650g/只","只",150,200,180,530]
[48,"醉鱼干","鱼香聚或同档次以上","产品保质期不得少于出厂保质期的三分之二","120g*30袋/箱","箱",5,10,10,25]
[49,"孜然羊排","馔玉或同档次以上","产品保质期不得少于出厂保质期的三分之二","500克*16包/箱","箱",5,10,10,25]
[50,"藤椒猪排","闽家宴或同档次以上","产品保质期不得少于出厂保质期的三分之二","1.26㎏/盒","盒",5,10,10,25]
[51,"羊肉串","万顺或同档次以上","产品保质期不得少于出厂保质期的三分之二","6㎏/箱","箱",15,10,10,35]
[52,"鱿鱼串","中康或同档次以上","产品保质期不得少于出厂保质期的三分之二","5包*20串/箱","箱",10,10,10,30]
[53,"里脊串","润客或同档次以上","产品保质期不得少于出厂保质期的三分之二","20串*10包/箱","箱",10,10,10,30]
[54,"小酥肉","学子膳或同档次以上","产品保质期不得少于出厂保质期的三分之二","1㎏*8包/箱","箱",80,50,60,190]
[55,"千页豆腐","安井或同档次以上","产品保质期不得少于出厂保质期的三分之二","4包*2.5㎏/箱","箱",50,20,40,110]
[56,"手工香肠","万隆或同档次以上","产品保质期不得少于出厂保质期的三分之二",null,"斤",150,100,100,350]
[57,"香肠 ","万隆或同档次以上","产品保质期不得少于出厂保质期的三分之二","5kg/箱","箱",30,80,80,190]
[58,"地道肠","金锣或同档次以上","产品保质期不得少于出厂保质期的三分之二","2.5㎏*4包/箱","箱",20,20,30,70]
[59,"腊肠","江门或同档次以上","产品保质期不得少于出厂保质期的三分之二","5㎏/箱","箱",15,10,20,45]
[60,"槟榔芋","芋圣或同档次以上","产品保质期不得少于出厂保质期的三分之二","2.5kg/包","包",10,10,10,30]
[61,"藕带","外婆湖或同档次以上","产品保质期不得少于出厂保质期的三分之二","350g*20包/箱","箱",5,5,10,20]
[62,"鹅掌","六合或同档次以上","产品保质期不得少于出厂保质期的三分之二",null,"斤",30,50,40,120]
[63,"鹅翅","六合或同档次以上","产品保质期不得少于出厂保质期的三分之二",null,"斤",150,50,80,280]
[64,"火腿肠（小）","雨润或同档次以上","产品保质期不得少于出厂保质期的三分之二","250g*8袋*64根/箱","箱",25,20,25,70]
[65,"酱鸭舌","万隆或同档次以上","产品保质期不得少于出厂保质期的三分之二",null,"斤",20,80,60,160]
[66,"糖醋里脊","佳意或同档次以上","产品保质期不得少于出厂保质期的三分之二","1.9kg*5袋/箱","箱",60,200,150,410]
[67,"深海鳕鱼排","亚洲渔港或同档次以上","产品保质期不得少于出厂保质期的三分之二","310g*20盒/箱","箱",30,20,30,{"$f":"G373+H373+I373","v":80}]
[68,"家乡肉圆","金三意或同档次以上","产品保质期不得少于出厂保质期的三分之二","40g*2kg*4袋/箱","箱",50,20,50,120]
[69,"灌汤白菜猪肉水饺","五丰或同档次以上","产品保质期不得少于出厂保质期的三分之二","500g/包","包",500,200,500,1200]
[70,"木鱼花","海赐或同档次以上","产品保质期不得少于出厂保质期的三分之二","5kg/箱","箱",50,20,40,110]
[71,"冻童子鸡","润泉或同档次以上","产品保质期不得少于出厂保质期的三分之二","15只/箱（500g-600g/只）","箱",30,20,30,80]
[72,"鱿鱼须","御鱿坊或同档次以上","产品保质期不得少于出厂保质期的三分之二","1.5kg/箱","箱",30,20,30,80]
[73,"帝王小米糕","帝王或同档次以上","产品保质期不得少于出厂保质期的三分之二","280g*30包/箱","箱",40,20,30,90]
[74,"正宗肥牛卷","鲜硕或同档次以上","产品保质期不得少于出厂保质期的三分之二","500g/盒","盒",100,100,100,300]
[75,"梅干菜饼","秋莲妈妈或同档次以上","产品保质期不得少于出厂保质期的三分之二","5片/包*20包/箱","箱",30,20,30,80]
[76,"酒酿馒头","土一点或同档次以上","产品保质期不得少于出厂保质期的三分之二","60g*12个*10包/箱","箱",30,20,30,80]
[77,"春笋米果","桐庐或同档次以上","产品保质期不得少于出厂保质期的三分之二","1.4kg/包/箱","箱",15,20,20,55]
[78,"黑椒肉柳","金三意、焦福或同档次以上","产品保质期不得少于出厂保质期的三分之二","2.5kg/包/箱","箱",50,20,30,100]
[79,"鸡排腿","中天或同档次以上","产品保质期不得少于出厂保质期的三分之二","6KG /箱","箱",120,50,100,270]
[80,"大麻球","霍嘉或同档次以上","产品保质期不得少于出厂保质期的三分之二","2.25kg*4包/箱","箱",60,30,60,150]
[81,"水煮笋","老泥潭或同档次以上","产品保质期不得少于出厂保质期的三分之二","1kg*10袋/箱","箱",50,50,50,150]
[82,"狮子头","安井或同档次以上","产品保质期不得少于出厂保质期的三分之二","2.5kg*4包/箱","箱",80,100,90,270]
[83,"耦盒","安井或同档次以上","产品保质期不得少于出厂保质期的三分之二","800g/10袋/箱","箱",50,20,40,110]
[84,"鸭肠","六合或同档次以上","产品保质期不得少于出厂保质期的三分之二","1kg/包","包",50,30,50,130]
[85,"鸡杂","和府或同档次以上","产品保质期不得少于出厂保质期的三分之二","1kg*10包/箱","箱",20,30,30,80]
[86,"去骨腿肉-乇乇肉","新盛或同档次以上","产品保质期不得少于出厂保质期的三分之二","1.6kg*6包/箱","箱",50,30,50,130]
[87,"千张包","美汇或同档次以上","产品保质期不得少于出厂保质期的三分之二","9kg/箱","箱",30,30,30,90]
[88,"热狗肠","安大或同档次以上","产品保质期不得少于出厂保质期的三分之二","2kg*10包/箱","箱",5,5,8,18]
[89,"西火腿","双汇或同档次以上","产品保质期不得少于出厂保质期的三分之二","400g/支","支",100,100,100,300]
[90,"咕咾肉","安大或同档次以上","产品保质期不得少于出厂保质期的三分之二","450g*10包/箱","箱",200,100,150,450]
[91,"牛肋骨 ","绿进或同档次以上或同档次以上","产品保质期不得少于出厂保质期的三分之二","650g*15根/箱","箱",5,10,null,15]

{"sheet":"Sheet3","index":1,"n_rows":0,"n_cols":0,"rows_kept":0}